bitfinex-derivatives/quotes_BTCF0:USTF0_20250411
["timestamp","ask_amount","ask_price","bid_price","bid_amount"]
[1744381819066,0.1227304,81519.0,81516.0,0.0001841]
[1744381819262,0.3684,81518.0,81517.0,0.1227316]
[1744381819468,0.3684,81518.0,81516.0,0.0001841]
[1744381819766,0.1883,81518.0,81517.0,0.1227326]
[1744381819962,0.1883,81518.0,81517.0,0.3130326]
[1744381821068,0.1883,81518.0,81517.0,0.6738326]
[1744381821361,0.2725607,81541.0,81517.0,0.6738326]
[1744381821362,0.2112125,81541.0,81540.0,0.122698]
[1744381821567,0.1971,81552.0,81551.0,0.1226815]
[1744381821763,0.1971,81552.0,81551.0,0.49674]
[1744381821963,0.1971,81552.0,81551.0,0.4834815]
[1744381822565,0.24458677,81553.0,81552.0,0.12268]
[1744381822766,0.24458677,81553.0,81552.0,0.49898]
[1744381822961,0.24458677,81553.0,81552.0,0.31835627]
[1744381823169,0.24458677,81553.0,81552.0,0.31839627]
[1744381823365,0.1971,81557.0,81556.0,0.1226739]
[1744381823984,0.0048,81568.0,81556.0,0.1226739]
[1744381823985,0.0048,81568.0,81567.0,0.1226574]
[1744381824463,0.0048,81568.0,81552.0,0.00931627]
[1744381824659,0.196,81567.0,81553.0,0.1993]
[1744381824864,0.196,81567.0,81566.0,0.1226589]
[1744381825260,0.196,81567.0,81566.0,0.4834589]
[1744381826068,0.196,81567.0,81566.0,0.6684589]
[1744381826265,0.0048,81568.0,81567.0,0.1226574]
[1744381826461,0.0048,81568.0,81567.0,0.3219574]
[1744381826973,0.0048,81568.0,81566.0,0.3608]
[1744381827171,0.1876,81567.0,81557.0,0.247136]
[1744381827370,0.1876,81567.0,81566.0,0.4834989]
[1744381827577,0.1876,81567.0,81566.0,0.1226989]
[1744381827778,0.1876,81567.0,81566.0,0.4834989]
[1744381828174,0.1876,81567.0,81566.0,0.6692989]
[1744381829170,0.3608,81590.0,81578.0,0.06132]
[1744381829474,0.1226314,81585.0,81581.0,0.1226358]
[1744381829771,0.182,81584.0,81583.0,0.1226333]
[1744381829973,0.182,81584.0,81581.0,4e-05]
[1744381830277,0.182,81584.0,81583.0,0.4834333]
[1744381830477,0.182,81584.0,81583.0,0.1226333]
[1744381830870,0.182,81584.0,81583.0,0.4834333]
[1744381831172,0.1,81600.0,81591.0,0.1226213]
[1744381831371,0.1,81600.0,81591.0,0.4834213]
[1744381831574,0.1,81600.0,81591.0,0.1226213]
[1744381832076,0.0612932,81615.0,81597.0,0.0613055]
[1744381832278,0.066092,81616.0,81600.0,0.3608]
[1744381832469,0.1273849,81616.0,81611.0,0.1225905]
[1744381832666,0.3656,81616.0,81600.0,0.3608]
[1744381832971,0.0736023,81597.0,81581.0,4e-05]
[1744381833174,0.6844023,81597.0,81581.0,0.1919]
[1744381833374,0.6844023,81597.0,81583.0,5.4e-05]
[1744381833570,0.6844023,81597.0,81570.0,0.54339841]
[1744381833571,0.0613103,81592.0,81570.0,0.3608]
[1744381833765,0.0613103,81592.0,81582.0,0.1226342]
[1744381833766,0.3608,81590.0,81582.0,0.1226342]
[1744381833972,0.1226151,81596.0,81589.0,0.1226243]
[1744381834170,0.1895,81595.0,81594.0,0.1226168]
[1744381835574,0.1895,81595.0,81594.0,0.1126168]
[1744381835776,0.3608,81599.0,81598.0,0.1226108]
[1744381836675,0.1877,81602.0,81601.0,0.1226063]
[1744381836873,0.0001831,81603.0,81602.0,0.1226048]
[1744381837681,0.0001831,81603.0,81602.0,0.4834048]
[1744381837882,0.0001831,81603.0,81602.0,0.1226048]
[1744381838472,0.0001831,81603.0,81602.0,0.13920248]
[1744381838683,0.0001831,81603.0,81602.0,0.1226048]
[1744381839286,0.0001831,81603.0,81602.0,0.1226448]
[1744381839483,0.3892831,81603.0,81602.0,0.1226448]
[1744381839982,0.5118864,81603.0,81602.0,4e-05]
[1744381840178,0.3892831,81603.0,81602.0,0.1226048]
[1744381840380,1e-07,81603.0,81602.0,0.1226448]
[1744381840583,1e-07,81603.0,81602.0,0.3726448]
[1744381840780,0.0047601,81616.0,81615.0,0.1225853]
[1744381841883,0.0047601,81616.0,81615.0,0.1226253]
[1744381843479,0.1964,81629.0,81628.0,0.1225657]
[1744381843876,0.1964,81629.0,81623.0,0.1973]
[1744381844086,0.1964,81629.0,81628.0,0.1225657]
[1744381844785,0.0048,81640.0,81628.0,0.3608]
[1744381845082,0.1855,81639.0,81638.0,0.1225507]
[1744381845384,0.0048,81640.0,81639.0,0.1225492]
[1744381845585,0.2549621,81656.0,81646.0,0.1225387]
[1744381845586,0.1855,81647.0,81646.0,0.1225387]
[1744381845782,0.0048,81664.0,81645.0,0.1832]
[1744381845989,0.1855,81660.0,81659.0,0.1225192]
[1744381846288,0.0048,81664.0,81660.0,0.1225177]
[1744381846488,0.0048,81664.0,81660.0,0.2602377]
[1744381846688,0.3608,81679.0,81678.0,0.1224907]
[1744381846881,0.1855,81693.0,81680.0,0.1224877]
[1744381847184,0.1855,81687.0,81680.0,0.1224877]
[1744381847581,0.0612393,81686.0,81675.0,0.422047]
[1744381847779,0.0048,81688.0,81680.0,0.1224877]
[1744381848183,0.1224807,81685.0,81680.0,0.1224877]
[1744381848484,0.0048,81688.0,81680.0,0.1224877]
[1744381848681,0.0048,81688.0,81687.0,0.1224772]
[1744381848876,0.0048,81688.0,81687.0,0.4832772]
[1744381849394,0.2106094,81694.0,81693.0,0.1224682]
[1744381849794,0.24458677,81705.0,81699.0,0.1224592]
[1744381849981,0.24458677,81705.0,81699.0,0.6209392]
[1744381850687,0.24458677,81705.0,81704.0,0.1224517]
[1744381850882,0.27929,81711.0,81710.0,0.1224427]
[1744381851077,1e-08,81712.0,81711.0,0.1134412]
[1744381851286,0.36177516,81722.0,81721.0,0.1224263]
[1744381851583,0.36177516,81722.0,81721.0,0.49844]
[1744381851789,0.36177516,81722.0,81721.0,0.6208663]
[1744381852690,0.3608,81750.0,81749.0,0.1223843]
[1744381853293,0.46910002,81755.0,81754.0,0.1223768]
[1744381853591,0.1223808,81752.0,81746.0,0.1223876]
[1744381853785,0.3608,81748.0,81742.0,0.0611974]
[1744381853985,0.3608,81748.0,81741.0,0.00018349]
[1744381854182,0.3608,81748.0,81747.0,0.1223873]
[1744381854381,0.0048,81760.0,81752.0,0.0611893]
[1744381854582,0.0048,81760.0,81759.0,0.1223694]
[1744381854980,0.0048,81760.0,81759.0,0.1314365]
[1744381855181,0.0048,81760.0,81759.0,0.1223694]
[1744381855691,0.0048,81760.0,81759.0,0.1224094]
[1744381855883,0.3608,81768.0,81767.0,0.1223574]
[1744381856084,0.3608,81776.0,81775.0,0.1223454]
[1744381856384,0.3608,81791.0,81768.0,0.1993]
[1744381856385,0.3656,81784.0,81768.0,0.1993]
[1744381856587,0.3656,81784.0,81783.0,0.1223334]
[1744381857180,0.3656,81784.0,81769.0,0.0611768]
[1744381857494,0.3656,81784.0,81768.0,0.14686643]
[1744381857691,0.3656,81784.0,81783.0,0.1223334]
[1744381857987,0.3656,81784.0,81770.0,0.39951483]
[1744381858189,0.0048,81784.0,81783.0,0.1223334]
[1744381858789,0.0048,81784.0,81781.0,0.0611682]
[1744381859094,0.35708595,81791.0,81789.0,0.1223243]
[1744381859292,0.1223268,81788.0,81785.0,0.1223301]
[1744381859490,0.41824705,81791.0,81783.0,0.0611667]
[1744381859694,0.47940835,81791.0,81784.0,0.0611659]
[1744381859896,0.3608,81798.0,81782.0,0.00018349]
[1744381860098,0.3608,81792.0,81783.0,0.0611661]
[1744381860600,0.1611541,81800.0,81799.0,0.1223095]
[1744381860786,0.1,81800.0,81799.0,0.1223095]
[1744381861491,0.0048,81808.0,81807.0,0.1222976]
[1744381861688,0.3656,81808.0,81804.0,0.0611509]
[1744381861893,0.122308,81800.0,81799.0,0.00018337]
[1744381862390,0.25,81800.0,81770.0,0.39951483]
[1744381862596,0.3608,81789.0,81770.0,0.58961483]
[1744381862800,0.3608,81789.0,81773.0,0.3608]
[1744381862991,0.4831349,81782.0,81781.0,7.29e-05]
[1744381863296,0.0611719,81777.0,81776.0,5.4e-05]
[1744381863601,0.1223446,81776.0,81773.0,0.00018337]
[1744381863804,0.1223403,81779.0,81778.0,0.1223379]
[1744381864098,0.0611689,81780.0,81773.0,0.00018337]
[1744381864099,0.1223469,81774.0,81773.0,0.00018337]
[1744381864296,0.3608,81780.0,81778.0,4e-05]
[1744381864489,0.1223394,81779.0,81778.0,4e-05]
[1744381864693,0.4831394,81779.0,81778.0,4e-05]
[1744381864893,0.4831394,81779.0,81760.0,7.29e-05]
[1744381864894,0.0611714,81777.0,81760.0,7.29e-05]
[1744381865092,0.0611714,81777.0,81742.0,0.2528967]
[1744381865093,0.1223783,81753.0,81742.0,0.2528967]
[1744381865288,0.0611848,81759.0,81745.0,5.4e-05]
[1744381865591,0.0611801,81766.0,81761.0,0.1223655]
[1744381865895,0.0611876,81756.0,81755.0,0.00018348]
[1744381866319,0.1223903,81745.0,81744.0,5.4e-05]
[1744381866617,0.1224004,81739.0,81738.0,0.1223994]
[1744381866813,0.3608,81753.0,81731.0,0.360854]
[1744381867012,0.1224087,81733.0,81731.0,0.360854]
[1744381867210,0.4832098,81732.0,81731.0,5.4e-05]
[1744381867611,0.1224218,81724.0,81723.0,0.18395014]
[1744381867814,0.1224218,81724.0,81723.0,0.00037034]
[1744381868014,0.0612192,81713.0,81702.0,0.1984]
[1744381868214,0.0612176,81715.0,81714.0,5.4e-05]
[1744381868405,0.3608,81718.0,81715.0,0.0612176]
[1744381868814,0.3608,81718.0,81717.0,0.1224322]
[1744381869019,0.1909,81731.0,81724.0,0.1224218]
[1744381869221,0.00018348,81726.0,81724.0,0.1224218]
[1744381869919,0.4832203,81725.0,81724.0,0.1224218]
[1744381870417,0.1224248,81723.0,81722.0,0.1224237]
[1744381870717,0.1224263,81721.0,81720.0,0.04894]
[1744381870913,0.0612234,81708.0,81701.0,7.29e-05]
[1744381871113,0.00018348,81726.0,81675.0,0.3608]
[1744381871114,0.7216,81702.0,81684.0,0.0612408]
[1744381871313,0.1982,81707.0,81677.0,0.1945]
[1744381871314,0.1982,81707.0,81701.0,4e-05]
[1744381871520,0.3608,81727.0,81706.0,0.0612242]
[1744381871821,0.1224285,81720.0,81714.0,0.0612183]
[1744381872117,0.1224388,81713.0,81709.0,0.00018359]
[1744381872313,0.0612178,81715.0,81714.0,4e-05]
[1744381872515,0.0612178,81715.0,81714.0,0.1224367]
[1744381872718,0.0612164,81717.0,81716.0,0.1224322]
[1744381872719,0.1224326,81717.0,81716.0,0.1224322]
[1744381873415,0.3608,81720.0,81719.0,0.1224293]
[1744381873622,0.00018359,81725.0,81724.0,0.1224218]
[1744381874018,0.00018359,81725.0,81714.0,4e-05]
[1744381874323,0.3608,81717.0,81714.0,4e-05]
[1744381874522,0.1224225,81724.0,81722.0,0.1224243]
[1744381874725,0.1224225,81724.0,81723.0,0.1224233]
[1744381875022,0.3608,81727.0,81717.0,0.0612157]
[1744381875220,0.1224352,81715.0,81714.0,4e-05]
[1744381875424,0.1224278,81721.0,81720.0,0.1224232]
[1744381875821,0.1224278,81721.0,81720.0,0.1224632]
[1744381876018,0.1224278,81721.0,81720.0,4e-05]
[1744381876520,0.1224237,81723.0,81722.0,0.1224218]
[1744381876819,0.1224263,81721.0,81720.0,4e-05]
[1744381877013,0.1836632,81712.0,81707.0,0.3608]
[1744381877213,0.3608,81727.0,81714.0,0.0612177]
[1744381877214,0.1224359,81715.0,81714.0,0.0612177]
[1744381877416,0.1224427,81710.0,81709.0,0.06140509]
[1744381877720,0.4832427,81710.0,81709.0,0.00018359]
[1744381878218,0.4832427,81710.0,81689.0,5.4e-05]
[1744381878219,0.0612324,81696.0,81689.0,5.4e-05]
[1744381878409,0.4832558,81702.0,81701.0,0.1224562]
[1744381878619,0.1224727,81690.0,81689.0,5.4e-05]
[1744381878809,0.1224707,81692.0,81689.0,5.4e-05]
[1744381879015,0.4832658,81695.0,81692.0,0.0612341]
[1744381879214,0.4832658,81695.0,81694.0,0.1224667]
[1744381879417,0.12263909,81702.0,81701.0,0.1224562]
[1744381879609,0.12263829,81702.0,81701.0,0.1224562]
[1744381879826,0.00018359,81702.0,81701.0,0.1224562]
[1744381880415,0.00018359,81702.0,81701.0,0.4832562]
[1744381880619,0.3608,81716.0,81715.0,0.1224352]
[1744381880815,0.1224367,81714.0,81713.0,0.0612184]
[1744381881223,0.1224442,81709.0,81708.0,0.1713957]
[1744381881424,0.3608,81716.0,81715.0,0.1224352]
[1744381881624,0.3608,81716.0,81708.0,0.04895]
[1744381881823,0.1224442,81709.0,81708.0,0.04895]
[1744381882122,0.0612068,81730.0,81708.0,0.40979]
[1744381882325,0.1224293,81719.0,81718.0,0.0612146]
[1744381882521,0.1224307,81718.0,81717.0,0.18]
[1744381882716,0.1224442,81709.0,81708.0,0.04899]
[1744381883119,0.1224442,81709.0,81708.0,0.04895]
[1744381883426,0.1224442,81709.0,81708.0,0.04899]
[1744381883622,0.1224442,81709.0,81708.0,0.04895]
[1744381883925,0.1224442,81709.0,81708.0,4e-05]
[1744381884517,0.1224457,81708.0,81703.0,0.3608]
[1744381884718,0.3047457,81708.0,81698.0,0.08568]
[1744381884914,0.1224592,81699.0,81698.0,0.08568]
[1744381885120,0.1224794,81688.0,81679.0,0.65435919]
[1744381885326,0.1224742,81690.0,81689.0,0.1224683]
[1744381885528,0.3608,81690.0,81679.0,0.65435919]
[1744381885827,0.1224802,81685.0,81680.0,0.1225417]
[1744381886025,0.1224802,81685.0,81679.0,0.65454278]
[1744381886219,0.1224802,81685.0,81684.0,0.34251944]
[1744381886928,0.4832802,81685.0,81684.0,0.22003774]
[1744381887125,0.7332802,81685.0,81684.0,0.166308]
[1744381887432,0.7332802,81685.0,81684.0,0.166348]
[1744381887926,0.7332802,81685.0,81679.0,0.29374278]
[1744381887927,0.1224877,81680.0,81679.0,0.29374278]
[1744381888134,0.4186,81680.0,81679.0,0.29374278]
[1744381888429,0.4186,81680.0,81679.0,0.12271279]
[1744381888430,0.5410877,81680.0,81679.0,0.12271279]
[1744381888623,0.4186,81680.0,81679.0,0.12271279]
[1744381889023,0.4186,81680.0,81679.0,0.31831279]
[1744381889224,0.4186,81680.0,81679.0,0.49901279]
[1744381890133,0.4186,81680.0,81679.0,0.49897279]
[1744381890432,0.5410877,81680.0,81679.0,0.30341279]
[1744381890633,0.4186,81680.0,81679.0,0.48521279]
[1744381891125,0.00935401,81703.0,81694.0,0.1224667]
[1744381891320,0.1224667,81694.0,81693.0,0.3756]
[1744381891628,0.1224667,81694.0,81693.0,0.1938]
[1744381892034,0.3081667,81694.0,81693.0,0.1938]
[1744381892329,0.12264989,81695.0,81693.0,0.1938]
[1744381892535,0.1224667,81694.0,81693.0,0.1938]
[1744381892729,0.3081667,81694.0,81693.0,0.1938]
[1744381892934,0.1224742,81689.0,81688.0,0.13368]
[1744381893235,0.1857,81694.0,81682.0,0.3162847]
[1744381893236,0.1224832,81683.0,81682.0,0.3162847]
[1744381893736,0.1224795,81686.0,81685.0,0.1837166]
[1744381894028,0.4220363,81690.0,81687.0,0.1224772]
[1744381894237,0.3608,81690.0,81689.0,0.1224742]
[1744381894821,0.1224727,81690.0,81689.0,0.1636]
[1744381895026,0.1224727,81690.0,81689.0,0.2860742]
[1744381895226,0.1224727,81690.0,81689.0,0.1636]
[1744381895426,0.1224787,81686.0,81685.0,4e-05]
[1744381895621,0.1224802,81685.0,81684.0,0.1224809]
[1744381895825,0.1224817,81684.0,81683.0,0.04896]
[1744381896028,0.1224817,81684.0,81683.0,0.1714432]
[1744381896532,0.7231817,81684.0,81683.0,0.04896]
[1744381896829,0.7231817,81684.0,81683.0,0.049]
[1744381897031,0.1224877,81680.0,81679.0,0.00018359]
[1744381897231,0.5410877,81680.0,81679.0,0.00018359]
[1744381897733,0.5410877,81680.0,81679.0,0.12267279]
[1744381897929,0.5410877,81680.0,81679.0,0.00018359]
[1744381898129,0.7219877,81680.0,81679.0,0.00018359]
[1744381898637,0.9171877,81680.0,81679.0,0.00018359]
[1744381899135,0.9171877,81680.0,81679.0,0.00022359]
[1744381899732,0.9171877,81680.0,81679.0,0.00018359]
[1744381899942,0.9171877,81680.0,81679.0,0.00022359]
[1744381900523,0.7362877,81680.0,81679.0,0.12271279]
[1744381900923,0.4186,81680.0,81679.0,0.12271279]
[1744381901237,0.5410877,81680.0,81679.0,0.12271279]
[1744381901423,0.4186,81680.0,81679.0,0.12271279]
[1744381902132,0.4186,81680.0,81679.0,0.50391279]
[1744381902332,0.4186,81702.0,81679.0,0.63142359]
[1744381902537,0.1224877,81680.0,81679.0,0.38142359]
[1744381902732,0.1224877,81680.0,81679.0,0.18512359]
[1744381902931,0.3608,81683.0,81679.0,0.24636739]
[1744381903132,0.1224818,81684.0,81683.0,0.1224817]
[1744381903331,0.5410802,81685.0,81684.0,0.1224817]
[1744381903533,0.5410802,81685.0,81682.0,0.1224834]
[1744381903534,0.1224846,81683.0,81682.0,0.1224834]
[1744381903729,0.1224876,81681.0,81680.0,0.1224862]
[1744381904035,0.1224877,81680.0,81679.0,0.00022359]
[1744381904537,0.1224877,81680.0,81679.0,0.00018359]
[1744381904836,0.1224877,81680.0,81679.0,0.00022359]
[1744381905133,0.1224877,81680.0,81679.0,0.00018359]
[1744381905341,0.1224877,81680.0,81679.0,0.00022359]
[1744381906135,0.249041,81684.0,81679.0,0.00022359]
[1744381906335,0.4186,81685.0,81684.0,0.1224817]
[1744381907246,0.4186,81685.0,81681.0,0.0612431]
[1744381907247,0.3608,81694.0,81693.0,0.1224682]
[1744381907740,0.061224,81707.0,81693.0,0.1224682]
[1744381907741,0.4186,81711.0,81694.0,0.1224667]
[1744381907937,0.6083,81711.0,81694.0,0.1224667]
[1744381908140,0.13949759,81712.0,81711.0,0.1224412]
[1744381908342,0.1224532,81703.0,81702.0,0.12864]
[1744381908736,0.3072532,81703.0,81702.0,0.12864]
[1744381909135,0.3725,81703.0,81702.0,0.2510947]
[1744381909339,0.1848,81703.0,81702.0,0.2510947]
[1744381910535,0.1848,81703.0,81702.0,0.2511347]
[1744381910936,0.3608,81709.0,81706.0,0.0612243]
[1744381911136,0.3608,81709.0,81708.0,0.1224457]
[1744381911731,0.00018359,81711.0,81710.0,0.1224427]
[1744381911932,0.20924638,81723.0,81716.0,0.1224337]
[1744381912135,0.1881,81730.0,81729.0,0.1224143]
[1744381912136,0.3768,81730.0,81729.0,0.1224143]
[1744381912543,0.1887,81730.0,81729.0,0.1224143]
[1744381913240,0.3608,81732.0,81731.0,0.1224113]
[1744381913446,0.14140922,81736.0,81735.0,0.1224053]
[1744381914243,0.1887,81759.0,81742.0,0.0611971]
[1744381914547,0.1887,81767.0,81761.0,0.1223664]
[1744381914944,0.27779164,81768.0,81761.0,0.2510064]
[1744381915339,0.061169,81780.0,81761.0,0.2510064]
[1744381915340,0.17657315,81774.0,81771.0,0.061175]
[1744381915533,0.17657315,81774.0,81773.0,0.4811484]
[1744381915732,0.2429433,81791.0,81790.0,0.122323]
[1744381916436,0.2429433,81791.0,81790.0,0.1316891]
[1744381917242,0.18040569,81791.0,81790.0,0.7424891]
[1744381918040,0.18040569,81791.0,81790.0,0.4924891]
[1744381918743,0.08886029,81791.0,81790.0,0.9334291]
[1744381919251,9e-08,81791.0,81790.0,0.9334291]
[1744381919440,9e-08,81791.0,81790.0,1.1241291]
[1744381919836,0.27775173,81796.0,81795.0,0.1223155]
[1744381920041,0.27775173,81796.0,81795.0,0.6116755]
[1744381920240,0.00018346,81799.0,81798.0,0.122311]
[1744381920434,0.00018346,81799.0,81798.0,0.250871]
[1744381920641,0.19208346,81799.0,81798.0,0.12856]
[1744381920841,0.19208346,81799.0,81798.0,0.1286]
[1744381920842,0.67519296,81799.0,81798.0,0.1286]
[1744381921242,0.86519296,81799.0,81798.0,0.1286]
[1744381921447,0.19208346,81799.0,81798.0,0.1286]
[1744381921646,0.19208346,81799.0,81798.0,0.122311]
[1744381921944,0.00018346,81799.0,81798.0,0.122351]
[1744381922345,0.19208346,81799.0,81798.0,0.122351]
[1744381922643,0.19208346,81799.0,81798.0,0.122311]
[1744381922838,0.19208346,81799.0,81798.0,0.122351]
[1744381923253,0.00018346,81799.0,81798.0,0.306851]
[1744381923451,0.00018346,81799.0,81798.0,0.502151]
[1744381923837,0.00018346,81799.0,81798.0,0.630671]
[1744381924652,0.00018346,81799.0,81798.0,0.630631]
[1744381924845,0.00018346,81799.0,81798.0,0.630671]
[1744381925444,0.00018346,81799.0,81798.0,0.441171]
[1744381925640,0.19908346,81799.0,81798.0,0.441131]
[1744381925844,0.00018346,81799.0,81798.0,0.441171]
[1744381926051,0.00018346,81799.0,81798.0,0.312651]
[1744381926242,0.00018346,81799.0,81798.0,0.441171]
[1744381927047,0.18468346,81799.0,81798.0,0.441171]
[1744381927357,0.18468346,81799.0,81798.0,0.446171]
[1744381927648,0.50499296,81799.0,81798.0,0.32382]
[1744381927849,0.38268346,81799.0,81798.0,0.122351]
[1744381928048,0.18468346,81799.0,81798.0,0.122311]
[1744381928248,0.18468346,81799.0,81798.0,0.18704]
[1744381928442,0.50499296,81799.0,81798.0,4e-05]
[1744381928648,0.50499296,81799.0,81797.0,0.12852]
[1744381928649,0.38268346,81799.0,81797.0,0.12852]
[1744381928843,0.50499296,81799.0,81798.0,4e-05]
[1744381929150,0.122314,81796.0,81795.0,0.0489]
[1744381929350,0.122314,81796.0,81776.0,0.3608]
[1744381929351,0.0611622,81790.0,81784.0,5.4e-05]
[1744381929544,0.1223334,81783.0,81772.0,0.0611748]
[1744381929748,0.1223334,81783.0,81779.0,0.122339]
[1744381929949,0.1223334,81783.0,81768.0,0.01519069]
[1744381930150,0.1223334,81783.0,81779.0,0.1223384]
[1744381930449,0.5588,81789.0,81769.0,0.36976788]
[1744381930645,0.5588,81789.0,81788.0,0.122326]
[1744381930846,0.198,81789.0,81788.0,0.122326]
[1744381931153,0.6811245,81789.0,81788.0,0.101326]
[1744381931352,0.0611644,81787.0,81771.0,0.1809]
[1744381931555,0.1834971,81787.0,81786.0,0.1223263]
[1744381931755,0.0611644,81787.0,81786.0,0.1223263]
[1744381931943,0.0611644,81787.0,81784.0,0.0611652]
[1744381932143,0.1223334,81783.0,81782.0,0.12255736]
[1744381932343,0.4831334,81783.0,81782.0,0.12255736]
[1744381932550,0.4831334,81783.0,81782.0,0.00018346]
[1744381932742,0.22620709,81783.0,81782.0,0.00018346]
[1744381932947,0.34854049,81783.0,81782.0,0.00022346]
[1744381933149,0.34854049,81783.0,81782.0,0.00018346]
[1744381933347,0.34854049,81783.0,81782.0,0.00022346]
[1744381933653,0.1223589,81766.0,81748.0,0.12848]
[1744381933859,0.1223753,81755.0,81754.0,7.29e-05]
[1744381934051,0.0611869,81756.0,81749.0,0.0611921]
[1744381934351,0.4186,81766.0,81765.0,0.1223604]
[1744381935755,0.4186,81766.0,81760.0,0.1223674]
[1744381935959,0.4186,81766.0,81755.0,0.4219872]
[1744381935960,0.1948,81765.0,81755.0,0.3608]
[1744381936345,0.1948,81765.0,81762.0,0.1223644]
[1744381936555,0.1948,81765.0,81763.0,0.01588793]
[1744381936761,0.1223621,81764.0,81763.0,0.01588793]
[1744381936957,0.1223709,81758.0,81757.0,0.00022346]
[1744381937557,0.1223709,81758.0,81757.0,0.00018346]
[1744381937756,0.1223709,81758.0,81757.0,0.00022346]
[1744381937957,0.5409709,81758.0,81757.0,0.00022346]
[1744381938745,0.4186,81758.0,81757.0,0.1223723]
[1744381938946,0.4186,81758.0,81757.0,0.6706723]
[1744381939153,0.5409709,81758.0,81757.0,0.6706723]
[1744381939855,0.1223723,81757.0,81756.0,0.03614346]
[1744381940057,0.3000723,81757.0,81756.0,0.03614346]
[1744381941057,0.061188,81755.0,81749.0,0.00018346]
[1744381941259,0.1223828,81750.0,81749.0,0.12256676]
[1744381941662,0.1223828,81750.0,81749.0,0.12256776]
[1744381942060,0.1223828,81750.0,81749.0,0.00018346]
[1744381942449,0.0611906,81752.0,81749.0,0.00018346]
[1744381942653,0.5409723,81758.0,81757.0,0.1223723]
[1744381942854,0.5409723,81758.0,81755.0,0.0611869]
[1744381942855,0.4186,81758.0,81755.0,0.0611869]
[1744381943055,0.3608,81793.0,81773.0,0.1223484]
[1744381943250,0.3608,81793.0,81773.0,0.8439484]
[1744381943451,0.1,81800.0,81799.0,0.1223095]
[1744381943654,0.1,81800.0,81799.0,0.4831095]
[1744381944366,0.1223125,81797.0,81796.0,0.3608]
[1744381944554,0.1223125,81797.0,81796.0,0.483114]
[1744381944750,0.1834664,81799.0,81798.0,0.122311]
[1744381945160,0.1,81800.0,81799.0,0.1223095]
[1744381945359,0.1223125,81797.0,81796.0,0.3608]
[1744381945557,0.1,81800.0,81799.0,0.1223095]
[1744381946159,0.1834672,81799.0,81796.0,0.3608]
[1744381946362,0.1,81800.0,81799.0,0.1223095]
[1744381946558,0.1,81800.0,81799.0,0.1003095]
[1744381946763,0.1,81800.0,81799.0,0.11673362]
[1744381947167,0.1,81800.0,81799.0,0.29583362]
[1744381947465,0.222308,81800.0,81799.0,0.01642249]
[1744381947859,0.222308,81800.0,81799.0,0.01646249]
[1744381948061,0.1223125,81797.0,81796.0,0.08557]
[1744381948363,0.1223125,81797.0,81796.0,0.10202556]
[1744381948559,0.5409125,81797.0,81796.0,0.10202556]
[1744381948761,0.5409125,81797.0,81796.0,0.08557]
[1744381948961,0.4186,81797.0,81796.0,0.08557]
[1744381949153,0.5409125,81797.0,81796.0,0.08557]
[1744381949359,0.12232,81792.0,81786.0,0.29355919]
[1744381949657,0.12232,81792.0,81791.0,0.01689505]
[1744381949857,0.12232,81792.0,81791.0,0.01711374]
[1744381950057,0.3608,81794.0,81791.0,0.01711374]
[1744381950258,0.1726,81793.0,81792.0,0.13921028]
[1744381950467,0.1726,81793.0,81792.0,0.01689028]
[1744381950664,0.2949185,81793.0,81792.0,0.01689028]
[1744381950961,0.1726,81793.0,81792.0,0.01689028]
[1744381951163,0.2949185,81793.0,81792.0,0.01689028]
[1744381951368,0.12232,81792.0,81791.0,0.00022346]
[1744381951566,0.12232,81792.0,81791.0,0.13955935]
[1744381951760,0.12232,81792.0,81791.0,0.13959935]
[1744381952065,0.12232,81792.0,81791.0,0.13959785]
[1744381952458,0.12232,81792.0,81791.0,0.01727785]
[1744381952658,0.12232,81792.0,81791.0,0.13959935]
[1744381953060,0.3608,81795.0,81794.0,0.122317]
[1744381953363,0.3608,81795.0,81794.0,0.13937139]
[1744381953862,0.3608,81795.0,81794.0,0.122317]
[1744381954265,0.1,81800.0,81799.0,0.1223095]
[1744381954567,0.1,81800.0,81799.0,0.4831095]
[1744381955967,0.1,81800.0,81799.0,0.4831495]
[1744381957158,0.1,81800.0,81799.0,0.36084]
[1744381957670,0.1,81800.0,81799.0,0.4831495]
[1744381958174,0.222308,81800.0,81799.0,0.18094]
[1744381958470,0.640908,81800.0,81799.0,4e-05]
[1744381958669,0.640908,81800.0,81794.0,0.29355919]
[1744381958670,0.1223155,81795.0,81794.0,0.29355919]
[1744381958974,0.4831155,81795.0,81794.0,0.29355919]
[1744381959169,1.0777155,81795.0,81794.0,0.29355919]
[1744381959370,1.0777155,81795.0,81794.0,0.29359919]
[1744381959568,1.0777155,81795.0,81794.0,0.24120249]
[1744381959875,1.0777155,81795.0,81787.0,0.38302246]
[1744381959876,0.122326,81788.0,81787.0,0.38302246]
[1744381960065,0.483126,81788.0,81787.0,0.38302246]
[1744381960261,0.1223349,81782.0,81767.0,0.180954]
[1744381960470,0.5409349,81782.0,81767.0,0.180954]
[1744381960672,0.5409349,81782.0,81767.0,0.1809]
[1744381960871,0.8776349,81782.0,81781.0,0.43928836]
[1744381961274,0.1223529,81770.0,81765.0,5.4e-05]
[1744381961569,0.4831529,81770.0,81762.0,1.16876825]
[1744381961772,0.1223634,81763.0,81762.0,1.16876825]
[1744381961974,0.9017634,81763.0,81762.0,1.16876825]
[1744381962369,0.1223723,81757.0,81756.0,0.1223737]
[1744381962675,0.84957147,81763.0,81760.0,0.1223664]
[1744381962676,0.2447383,81761.0,81760.0,0.1223664]
[1744381962883,0.3059243,81761.0,81760.0,0.1223664]
[1744381963273,0.0611861,81758.0,81754.0,0.00018346]
[1744381963463,0.1223753,81755.0,81754.0,0.00018346]
[1744381963670,0.1223753,81755.0,81754.0,0.12256026]
[1744381963872,0.1223753,81755.0,81754.0,0.12260026]
[1744381963873,0.2886753,81755.0,81754.0,0.12260026]
[1744381964177,0.2886753,81755.0,81754.0,0.00022346]
[1744381964374,0.2886753,81755.0,81754.0,0.12260026]
[1744381964675,0.1223753,81755.0,81754.0,0.00022346]
[1744381965075,0.4186,81763.0,81762.0,0.1223649]
[1744381965279,0.1223738,81757.0,81756.0,0.061184]
[1744381965480,0.1223738,81757.0,81756.0,0.4148352]
[1744381965679,0.1223738,81757.0,81755.0,0.232086]
[1744381965680,0.1223738,81756.0,81755.0,0.1709]
[1744381965872,0.1223753,81755.0,81754.0,0.00022346]
[1744381966066,0.1223753,81755.0,81754.0,0.12256026]
[1744381966279,0.1223753,81755.0,81754.0,0.00022346]
[1744381966671,0.1223753,81755.0,81754.0,0.00018346]